bitfinex-derivatives/quotes_SOLF0:USTF0_20260207
["timestamp","ask_amount","ask_price","bid_price","bid_amount"]
[1770431799750,4.70135402,87.36,87.315,3.90085802]
[1770431799952,3.8557299,87.359,87.315,3.90085802]
[1770431801755,4.70135402,87.35,87.315,3.90085802]
[1770431802251,3.8557299,87.349,87.315,3.90085802]
[1770431802446,3.8557299,87.339,87.301,3.90085802]
[1770431803048,3.8557299,87.329,87.286,3.90085802]
[1770431803250,4.70135402,87.32,87.286,3.90085802]
[1770431806958,4.70135402,87.32,87.288,3.90085802]
[1770431807157,3.8557299,87.329,87.288,3.90085802]
[1770431808659,4.70135402,87.35,87.3,3.90085802]
[1770431808957,3.8557299,87.354,87.301,3.90085802]
[1770431809157,3.8557299,87.354,87.324,10.3134]
[1770431810653,4.70135402,87.36,87.329,3.90085802]
[1770431810962,4.70135402,87.37,87.329,3.90085802]
[1770431811862,4.70135402,87.37,87.331,10.3125]
[1770431812058,8.55708392,87.37,87.331,10.3125]
[1770431812464,4.70135402,87.36,87.331,10.3125]
[1770431812661,3.8557299,87.359,87.329,3.90085802]
[1770431812861,3.8557299,87.359,87.322,10.3136]
[1770431813064,3.8557299,87.359,87.312,3.90085802]
[1770431813263,3.8557299,87.379,87.331,3.90085802]
[1770431814868,3.8557299,87.379,87.343,10.3111]
[1770431816863,4.70135402,87.39,87.352,10.3101]
[1770431817260,10.3037,87.407,87.343,3.90085802]
[1770431817261,4.70135402,87.4,87.343,3.90085802]
[1770431817765,4.70135402,87.4,87.36,10.3091]
[1770431818865,2.38781763,87.399,87.36,10.3091]
[1770431820061,2.38781763,87.399,87.345,10.3109]
[1770431820271,4.70135402,87.38,87.346,3.90085802]
[1770431820861,2.37820334,87.379,87.335,10.3121]
[1770431821169,4.70135402,87.37,87.332,3.90085802]
[1770431823068,2.36422184,87.394,87.341,3.90085802]
[1770431823465,2.36422184,87.394,87.34,4.70135402]
[1770431823466,2.36422184,87.407,87.361,3.90085802]
[1770431823768,4.70135402,87.43,87.371,3.90085802]
[1770431823973,4.70135402,87.4,87.371,3.90085802]
[1770431824163,4.70135402,87.41,87.371,3.90085802]
[1770431824570,2.35380011,87.409,87.357,3.90085802]
[1770431824771,4.70135402,87.4,87.357,3.90085802]
[1770431825668,2.35380011,87.409,87.357,3.90085802]
[1770431825874,2.35380011,87.409,87.36,10.3091]
[1770431826369,7.03501678,87.42,87.367,3.9180563]
[1770431827670,7.03501678,87.42,87.37,10.308]
[1770431827973,7.03501678,87.42,87.371,3.9180563]
[1770431828374,7.03501678,87.42,87.373,3.66225072]
[1770431829176,2.33513568,87.419,87.373,3.66225072]
[1770431829371,4.70135402,87.41,87.373,3.66225072]
[1770431829669,4.70135402,87.41,87.374,10.3074]
[1770431829975,2.33513568,87.419,87.374,10.3074]
[1770431830274,2.33513568,87.419,87.373,3.66225072]
[1770431831571,2.33513568,87.419,87.374,10.3075]
[1770431831875,4.70135402,87.41,87.374,10.3075]
[1770431832071,2.33513568,87.419,87.374,13.96975072]
[1770431832368,10.3026,87.417,87.374,3.66225072]
[1770431832575,2.45468265,87.399,87.341,3.66225072]
[1770431832877,4.70135402,87.39,87.341,3.66225072]
[1770431833178,4.70135402,87.39,87.343,3.66225072]
[1770431834170,4.70135402,87.39,87.345,10.3109]
[1770431834476,4.70135402,87.39,87.346,3.66225072]
[1770431834865,2.41329974,87.397,87.346,3.66225072]
[1770431835576,2.41329974,87.397,87.35,3.66225072]
[1770431836670,2.41329974,87.397,87.354,10.3098]
[1770431836877,2.41329974,87.397,87.354,13.97205072]
[1770431837679,2.41329974,87.397,87.355,3.66225072]
[1770431841874,2.42792459,87.442,87.369,3.66225072]
[1770431842181,2.42792459,87.419,87.371,3.66225072]
[1770431842777,2.42792459,87.419,87.374,3.66225072]
[1770431844674,2.42792459,87.419,87.377,10.3071]
[1770431844876,10.3023,87.419,87.377,3.66225072]
[1770431845084,1.99191215,87.443,87.364,3.66225072]
[1770431845085,2.7967039,87.409,87.364,3.66225072]
[1770431846181,2.89079349,87.399,87.351,3.66225072]
[1770431847179,10.3048,87.397,87.351,3.66225072]
[1770431847387,7.69771722,87.39,87.351,3.66225072]
[1770431847784,3.05382073,87.388,87.337,3.66225072]
[1770431848275,3.05382073,87.379,87.337,3.66225072]
[1770431848482,4.6969252,87.36,87.323,3.66225072]
[1770431848680,3.16062912,87.359,87.309,3.66225072]
[1770431848884,4.6969252,87.34,87.291,3.66225072]
[1770431849187,4.6969252,87.33,87.291,3.66225072]
[1770431850181,3.25285177,87.349,87.291,3.66225072]
[1770431850984,4.6969252,87.34,87.291,3.66225072]
[1770431851789,4.6969252,87.34,87.294,3.66225072]
[1770431853386,3.25285177,87.349,87.294,3.66225072]
[1770431853879,4.6969252,87.35,87.297,3.66225072]
[1770431854487,3.73132489,87.329,87.284,10.3181]
[1770431854879,3.73132489,87.329,87.284,13.98035072]
[1770431855083,3.73132489,87.329,87.285,3.66225072]
[1770431855987,4.6969252,87.32,87.285,3.66225072]
[1770431859486,4.24762055,87.355,87.296,4.75394382]
[1770431859790,4.6969252,87.36,87.301,4.75394382]
[1770431859992,9.03410203,87.36,87.301,4.75394382]
[1770431860191,9.03410203,87.36,87.314,10.3146]
[1770431860489,9.03410203,87.36,87.315,4.75394382]
[1770431861791,9.03410203,87.36,87.317,10.3142]
[1770431862886,4.47997272,87.369,87.32,4.75394382]
[1770431863196,4.47997272,87.359,87.301,4.75394382]
[1770431863592,4.47997272,87.359,87.314,4.75394382]
[1770431864491,4.47997272,87.377,87.317,4.75394382]
[1770431865496,4.47997272,87.377,87.334,10.3122]
[1770431865692,4.47997272,87.377,87.317,4.75394382]
[1770431866690,4.47997272,87.377,87.325,10.3133]
[1770431867002,4.47997272,87.377,87.325,15.06724382]
[1770431867895,4.47997272,87.377,87.327,10.313]
[1770431869794,4.47997272,87.377,87.327,15.06694382]
[1770431871200,4.47997272,87.377,87.328,4.75394382]
[1770431872098,4.47997272,87.375,87.328,4.75394382]
[1770431873994,4.47997272,87.366,87.313,4.75394382]
[1770431875797,4.47997272,87.367,87.313,4.75394382]
[1770431876702,4.47997272,87.384,87.316,4.75394382]
[1770431877697,4.47997272,87.382,87.324,4.75394382]
[1770431878706,10.3068,87.381,87.329,4.75394382]
[1770431879202,4.47997272,87.38,87.329,4.75394382]
[1770431879704,14.78767272,87.373,87.329,4.75394382]
[1770431879901,4.47997272,87.372,87.329,4.75394382]
[1770431880802,4.47997272,87.369,87.329,4.75394382]
[1770431881809,10.3084,87.367,87.329,4.75394382]
[1770431882606,4.47997272,87.361,87.31,10.315]
[1770431882812,4.47997272,87.361,87.304,4.75394382]
[1770431883199,4.47997272,87.34,87.291,4.75394382]
[1770431883503,4.70359129,87.33,87.291,4.75394382]
[1770431883905,4.70359129,87.32,87.291,4.75394382]
[1770431884104,4.47997272,87.319,87.291,4.75394382]
[1770431884706,14.79457272,87.314,87.261,4.75394382]
[1770431884911,4.70359129,87.31,87.258,10.3211]
[1770431886613,4.70359129,87.31,87.262,5.80987033]
[1770431888200,4.70359129,87.31,87.265,6.0119468]
[1770431888406,4.47997272,87.314,87.265,6.0119468]
[1770431888606,20.6154,87.373,87.215,20.6526]
[1770431888607,4.70359129,87.34,87.281,6.0119468]
[1770431889011,10.66909139,87.34,87.281,6.0119468]
[1770431889213,5.9655001,87.339,87.281,6.0119468]
[1770431889407,4.70359129,87.33,87.282,6.0119468]
[1770431889714,5.9655001,87.329,87.282,6.0119468]
[1770431889915,4.70359129,87.32,87.282,6.0119468]
[1770431892021,5.9655001,87.329,87.284,6.0119468]
[1770431892721,5.9655001,87.329,87.293,10.317]
[1770431893107,5.9655001,87.339,87.284,6.0119468]
[1770431893611,5.9655001,87.339,87.293,6.0119468]
[1770431894408,5.9655001,87.319,87.266,6.0119468]
[1770431894616,10.66909139,87.31,87.266,6.0119468]
[1770431895128,5.9655001,87.325,87.277,6.0119468]
[1770431895715,5.9655001,87.319,87.277,6.0119468]
[1770431895916,4.70380612,87.31,87.277,6.0119468]
[1770431896116,5.9655001,87.319,87.277,6.0119468]
[1770431897422,5.9655001,87.319,87.278,10.3188]
[1770431905028,5.9655001,87.319,87.281,10.3184]
[1770431905622,10.3123,87.334,87.286,6.0119468]
[1770431905623,4.70380612,87.33,87.286,6.0119468]
[1770431906028,5.9655001,87.329,87.286,6.0119468]
[1770431906728,5.9655001,87.329,87.287,10.3178]
[1770431913228,4.70380612,87.35,87.295,6.0119468]
[1770431913424,5.9655001,87.349,87.295,6.0119468]
[1770431914635,5.9655001,87.349,87.314,10.3145]
[1770431915934,4.70380612,87.36,87.317,6.95351869]
[1770431916138,11.65568343,87.36,87.317,6.95351869]
[1770431916436,6.95187731,87.359,87.317,6.95351869]
[1770431916636,6.95187731,87.359,87.322,10.3136]
[1770431918832,6.95187731,87.359,87.317,6.95351869]
[1770431923150,4.70380612,87.37,87.323,6.95351869]
[1770431923344,4.70380612,87.38,87.323,6.95351869]
[1770431923642,6.95187731,87.383,87.331,6.95351869]
[1770431924848,6.95187731,87.383,87.34,6.95351869]
[1770431925852,6.95187731,87.383,87.342,17.26471869]
[1770431926443,4.70380612,87.38,87.342,17.26471869]
[1770431927049,6.95187731,87.379,87.342,6.95351869]
[1770431927251,6.95187731,87.379,87.333,10.3124]
[1770431927252,6.95187731,87.369,87.333,10.3124]
[1770431927648,4.70380612,87.36,87.333,10.3124]
[1770431927849,4.70380612,87.36,87.33,6.95351869]
[1770431928543,4.70380612,87.36,87.276,28.29054711]
[1770431928544,6.95187731,87.359,87.315,10.3144]
[1770431930252,4.70380612,87.35,87.315,10.3144]
[1770431930452,4.70380612,87.35,87.307,6.95351869]
[1770431931053,6.95187731,87.358,87.307,6.95351869]
[1770431931454,6.95187731,87.358,87.311,6.95351869]
[1770431932959,6.95187731,87.358,87.315,10.3144]
[1770431934750,6.95187731,87.358,87.316,6.95351869]
[1770431938460,6.95187731,87.356,87.316,6.95351869]
[1770431938651,4.70380612,87.35,87.316,6.95351869]
[1770431939959,6.95187731,87.356,87.316,6.95351869]
[1770431940658,6.95187731,87.368,87.317,6.95351869]
[1770431942360,6.95187731,87.366,87.317,6.95351869]
[1770431943359,4.70380612,87.37,87.317,6.95351869]
[1770431943360,4.70380612,87.35,87.317,6.95351869]
[1770431944357,10.31,87.354,87.317,6.95351869]
[1770431946755,17.90769042,87.354,87.317,6.95351869]
[1770431947659,7.59769042,87.354,87.317,6.95351869]
[1770431952369,7.71166196,87.366,87.317,6.95351869]
[1770431952571,7.71166196,87.366,87.321,7.15845093]
[1770431953770,7.71166196,87.366,87.327,7.15845093]
[1770431956267,7.71166196,87.366,87.326,10.3131]
[1770431956268,7.71166196,87.366,87.33,7.15845093]
[1770431962176,4.69929719,87.34,87.299,7.15845093]
[1770431962372,7.71166196,87.329,87.279,7.15845093]
[1770431962880,7.71166196,87.329,87.283,10.3182]
[1770431963069,7.71166196,87.319,87.279,7.15845093]
[1770431963480,12.41095915,87.31,87.264,7.15845093]
[1770431963683,7.71166196,87.309,87.264,7.15845093]
[1770431963878,7.71166196,87.309,87.265,10.3203]
[1770431964071,7.71166196,87.309,87.25,4.69929719]
[1770431964072,7.71166196,87.309,87.266,7.15845093]
[1770431965679,7.71166196,87.309,87.268,10.32]
[1770431965879,7.71166196,87.309,87.269,7.15845093]
[1770431966676,7.71166196,87.309,87.27,10.3198]
[1770431966878,7.71166196,87.309,87.27,17.47825093]
[1770431967279,4.69929719,87.29,87.253,10.3217]
[1770431967481,4.69929719,87.29,87.254,7.15845093]
[1770431967880,7.71166196,87.299,87.254,7.15845093]
[1770431968281,7.71166196,87.299,87.258,7.15845093]
[1770431968581,7.71166196,87.312,87.261,7.15845093]
[1770431969685,7.71166196,87.312,87.264,10.3205]
[1770431969984,7.71166196,87.312,87.265,7.15845093]
[1770431971185,7.71166196,87.312,87.269,7.15845093]
[1770431972791,7.71166196,87.312,87.27,10.3198]
[1770431972990,7.71166196,87.312,87.27,17.47825093]
[1770431974591,7.71166196,87.312,87.271,7.15845093]
[1770431976184,4.69929719,87.32,87.271,7.15845093]
[1770431976391,4.69929719,87.32,87.169,34.38]
[1770431976392,7.42836723,87.339,87.281,7.8119669]
[1770431976685,7.42836723,87.339,87.305,10.3156]
[1770431976890,4.69929719,87.35,87.305,10.3156]
[1770431976891,7.42836723,87.349,87.305,7.8119669]
[1770431977091,4.69929719,87.36,87.305,7.8119669]
[1770431977287,4.69929719,87.37,87.323,7.8119669]
[1770431977487,7.42836723,87.377,87.323,7.8119669]
[1770431978387,7.42836723,87.359,87.3,4.69929719]
[1770431978588,7.42836723,87.349,87.298,7.8119669]
[1770431979992,7.42836723,87.339,87.298,7.8119669]
[1770431980294,7.42836723,87.339,87.285,7.8119669]
[1770431980588,12.12766442,87.33,87.285,7.8119669]
[1770431981396,7.42836723,87.33,87.285,7.8119669]
[1770431981796,7.42836723,87.33,87.287,10.3178]
[1770431982192,7.42836723,87.33,87.287,18.1297669]
[1770431983097,7.42836723,87.33,87.29,7.8119669]
[1770431984095,7.42836723,87.329,87.276,7.8119669]
[1770431985501,4.69929719,87.32,87.276,7.8119669]
[1770431985701,4.69929719,87.32,87.277,18.1308669]
[1770431985994,7.42836723,87.319,87.277,7.8119669]
[1770431988405,7.42836723,87.319,87.279,7.8119669]
[1770431989401,7.42836723,87.319,87.241,28.40938793]
[1770431989402,7.42836723,87.319,87.269,7.8119669]
[1770431994207,7.42836723,87.319,87.271,7.8119669]
[1770431995798,7.42836723,87.319,87.273,7.8119669]
[1770431998804,7.42836723,87.319,87.276,7.8119669]
[1770431999011,7.42836723,87.329,87.276,7.8119669]
[1770431999303,7.42836723,87.329,87.27,4.69929719]
[1770431999304,7.42836723,87.329,87.287,7.8119669]
[1770432000511,7.42836723,87.329,87.296,10.3166]
[1770432003313,7.42836723,87.342,87.305,7.8119669]
[1770432004815,7.42836723,87.342,87.309,10.3151]
[1770432009314,4.69929719,87.35,87.31,8.35723726]
[1770432009719,12.85371463,87.35,87.31,8.35723726]
[1770432009917,8.15441744,87.349,87.311,10.315]
[1770432010820,8.15441744,87.359,87.315,8.35723726]
[1770432011320,8.15441744,87.359,87.329,10.3127]
[1770432012723,8.15441744,87.359,87.284,20.6362]
[1770432012724,8.15441744,87.349,87.298,8.35723726]
[1770432012922,8.15441744,87.339,87.298,8.35723726]
[1770432017721,8.15441744,87.339,87.301,8.35723726]
[1770432021730,8.15441744,87.339,87.302,10.316]
[1770432032036,8.15441744,87.339,87.303,8.35723726]
[1770432032935,8.15441744,87.354,87.305,8.35723726]
[1770432033246,8.15441744,87.369,87.311,8.35723726]
[1770432034743,8.15441744,87.369,87.33,10.3127]
[1770432035238,8.15441744,87.369,87.33,18.66993726]
[1770432036647,8.15441744,87.369,87.27,49.525262]
[1770432036648,8.0540488,87.419,87.361,8.4740198]
[1770432036837,4.70200585,87.41,87.361,8.4740198]
[1770432037035,160.158,87.474,87.361,8.4740198]
[1770432037036,4.70200585,87.4,87.361,8.4740198]
[1770432037445,8.0540488,87.409,87.361,8.4740198]
[1770432037935,8.0540488,87.389,87.348,8.4740198]
[1770432039144,8.0540488,87.379,87.328,8.4740198]
[1770432039340,4.70200585,87.37,87.328,8.4740198]
[1770432040847,4.70200585,87.37,87.329,10.3127]
[1770432041051,8.0540488,87.379,87.331,8.4740198]
[1770432041454,8.0540488,87.391,87.344,8.4740198]
[1770432043546,8.0540488,87.403,87.351,8.4740198]
[1770432044851,8.0540488,87.403,87.352,8.4740198]
[1770432046364,8.0540488,87.403,87.353,10.31]
[1770432046552,10.04623462,87.419,87.36,4.70200585]
[1770432046858,8.0540488,87.419,87.371,8.4740198]
[1770432047051,8.0540488,87.419,87.37,4.70200585]
[1770432047052,8.0540488,87.419,87.373,8.4740198]
[1770432047757,8.0540488,87.419,87.376,8.4740198]
[1770432048649,8.0540488,87.419,87.364,8.4740198]
[1770432049155,4.70200585,87.41,87.364,8.4740198]
[1770432050057,8.0540488,87.419,87.364,8.4740198]
[1770432051154,4.70200585,87.4,87.364,8.4740198]
[1770432051556,8.0540488,87.399,87.352,8.4740198]
[1770432054457,8.0540488,87.399,87.357,8.4740198]
[1770432054663,4.70200585,87.42,87.361,8.4740198]
[1770432054865,8.0540488,87.422,87.37,4.70200585]
[1770432055061,8.0540488,87.422,87.371,8.4740198]
[1770432055363,8.0540488,87.422,87.372,8.4740198]
[1770432058467,8.0540488,87.409,87.361,10.309]
[1770432058662,8.0540488,87.409,87.361,18.7830198]
[1770432058859,8.0540488,87.409,87.362,8.4740198]
[1770432059458,8.0540488,87.409,87.365,8.4740198]
[1770432059657,8.0540488,87.422,87.371,8.4740198]
[1770432060460,4.70200585,87.42,87.371,8.4740198]
[1770432061164,12.75605465,87.42,87.371,8.4740198]
[1770432061365,8.0540488,87.419,87.371,8.4740198]
[1770432061666,4.70200585,87.41,87.371,8.4740198]
[1770432061864,8.0540488,87.399,87.359,8.4740198]
[1770432062365,4.70200585,87.4,87.34,4.70200585]
[1770432062366,10.3048,87.397,87.34,4.70200585]
[1770432062668,10.3048,87.397,87.277,160.518]
[1770432062669,12.75605465,87.36,87.301,8.4740198]
[1770432063759,12.75605465,87.36,87.309,8.4740198]
[1770432069268,4.70200585,87.35,87.309,8.4740198]
[1770432069771,4.70200585,87.34,87.309,8.4740198]
[1770432070465,12.92406852,87.34,87.297,8.85991438]
[1770432071065,4.70200585,87.34,87.297,8.85991438]
[1770432072569,4.70200585,87.35,87.297,8.85991438]
[1770432073274,8.22206267,87.352,87.301,8.85991438]
[1770432073970,4.70200585,87.35,87.301,8.85991438]
[1770432074271,8.22206267,87.339,87.3,10.3162]
[1770432074968,8.22206267,87.339,87.3,19.17611438]
[1770432075162,8.22206267,87.339,87.301,8.85991438]
[1770432076169,8.22206267,87.329,87.285,8.85991438]
[1770432076370,8.22206267,87.309,87.271,8.85991438]
[1770432076573,8.22206267,87.299,87.251,8.85991438]
[1770432076871,4.70200585,87.29,87.251,8.85991438]
[1770432077372,4.70200585,87.29,87.23,4.70200585]
[1770432077373,8.22206267,87.289,87.238,8.85991438]
[1770432078673,8.22206267,87.289,87.241,8.85991438]
[1770432078871,8.22206267,87.299,87.241,8.85991438]
[1770432079575,8.22206267,87.299,87.243,8.85991438]
[1770432081373,4.70814802,87.29,87.243,8.85991438]
[1770432081670,8.22206267,87.259,87.218,8.85991438]
[1770432081869,194.7984,87.332,87.181,11.30959085]
[1770432081870,12.93021069,87.25,87.201,8.85991438]
[1770432082275,4.70814802,87.24,87.201,8.85991438]
[1770432083464,8.22206267,87.249,87.201,8.85991438]
[1770432085678,4.70814802,87.23,87.186,8.85991438]
[1770432086065,8.22206267,87.239,87.19,4.70814802]
[1770432086273,8.22206267,87.239,87.191,8.85991438]
[1770432086572,8.22206267,87.239,87.195,8.85991438]
[1770432086876,8.22206267,87.252,87.195,8.85991438]
[1770432087274,8.22206267,87.252,87.198,8.85991438]
[1770432087578,4.70814802,87.24,87.198,8.85991438]
[1770432090473,8.22206267,87.249,87.198,8.85991438]
[1770432090674,8.22206267,87.249,87.199,8.85991438]
[1770432091781,8.22206267,87.249,87.201,8.85991438]
[1770432092583,12.93021069,87.24,87.201,8.85991438]
[1770432092784,8.22206267,87.239,87.171,8.85991438]
[1770432092977,8.22206267,87.239,87.19,10.3292]
[1770432092978,4.70814802,87.23,87.19,10.3292]
[1770432093177,8.22206267,87.229,87.19,10.3292]
[1770432094883,4.70814802,87.22,87.185,8.85991438]
[1770432095276,8.22206267,87.209,87.155,8.85991438]
[1770432095483,8.22206267,87.199,87.155,8.85991438]
[1770432095976,4.70814802,87.19,87.155,8.85991438]
[1770432096376,13.37850648,87.21,87.158,8.28058237]
[1770432096580,4.70814802,87.2,87.158,8.28058237]
[1770432097785,4.70814802,87.2,87.159,10.3329]
[1770432099087,8.67035846,87.199,87.159,10.3329]
[1770432099388,4.70814802,87.21,87.171,10.3315]
[1770432099790,8.67035846,87.214,87.171,10.3315]
[1770432100190,4.70814802,87.21,87.171,10.3315]
[1770432100390,8.67035846,87.209,87.171,10.3315]
[1770432102990,4.70814802,87.23,87.181,8.28058237]
[1770432103189,8.67035846,87.279,87.181,8.28058237]
[1770432103394,8.67035846,87.238,87.181,8.28058237]
[1770432103797,8.67035846,87.238,87.193,8.28058237]
[1770432104390,8.67035846,87.257,87.201,8.28058237]
[1770432105299,8.67035846,87.257,87.217,10.326]
[1770432106691,8.67035846,87.257,87.223,10.3253]
[1770432106896,8.67035846,87.287,87.223,18.60588237]
[1770432107097,8.67035846,87.287,87.224,8.28058237]
[1770432107296,8.67035846,87.309,87.224,8.28058237]
[1770432109505,8.67035846,87.309,87.249,8.28058237]
[1770432111708,8.67035846,87.309,87.253,10.3218]
[1770432112408,8.67035846,87.309,87.253,18.60238237]
[1770432112608,8.67035846,87.309,87.258,10.3212]
[1770432118708,8.67035846,87.309,87.254,8.28058237]
[1770432121312,8.67035846,87.309,87.19,20.6585]
[1770432121313,8.67035846,87.289,87.221,8.28058237]
[1770432121911,8.67035846,87.273,87.221,8.28058237]
[1770432123911,8.67035846,87.269,87.221,8.28058237]
[1770432124715,8.67035846,87.267,87.221,8.28058237]
[1770432126714,8.78082339,87.265,87.221,8.28058237]
[1770432127416,4.71097342,87.26,87.221,8.28058237]
[1770432130216,20.6289,87.316,87.164,20.6647]
[1770432130217,8.52240349,87.289,87.231,9.03221416]
[1770432131109,23.55207691,87.28,87.231,9.03221416]
[1770432131818,13.23337691,87.28,87.231,9.03221416]
[1770432132018,8.52240349,87.28,87.231,9.03221416]
[1770432132714,181.0832,87.34,87.235,9.03221416]
[1770432132912,8.52240349,87.319,87.261,9.03221416]
[1770432133315,8.52240349,87.329,87.271,9.03221416]
[1770432133717,8.52240349,87.319,87.271,9.03221416]
[1770432135721,8.52240349,87.329,87.281,9.03221416]
[1770432136818,8.52240349,87.329,87.282,9.03221416]
[1770432142518,4.70278254,87.32,87.282,9.03221416]
[1770432143827,8.52240349,87.289,87.231,9.03221416]
[1770432144217,8.52240349,87.269,87.231,9.03221416]
[1770432148928,8.52240349,87.289,87.231,9.03221416]
[1770432151734,8.52240349,87.287,87.231,9.03221416]
[1770432154429,22.93114628,87.3,87.234,9.03221416]
[1770432154630,8.52240349,87.313,87.234,9.03221416]
[1770432155731,10.3148,87.313,87.254,10.3216]
[1770432155937,10.3148,87.313,87.255,8.81913379]
[1770432155938,8.94744339,87.312,87.255,8.81913379]
[1770432157642,8.94744339,87.312,87.256,10.3214]
[1770432157845,8.94744339,87.312,87.257,8.81913379]
[1770432158239,8.94744339,87.312,87.26,10.3209]
[1770432163744,8.94744339,87.312,87.265,10.3203]
[1770432164050,8.94744339,87.312,87.266,8.81913379]
[1770432164453,8.94744339,87.312,87.268,8.81913379]
[1770432165851,8.94744339,87.312,87.272,10.3195]
[1770432166253,8.94744339,87.329,87.273,8.81913379]
[1770432166552,8.94744339,87.329,87.284,8.81913379]
[1770432166944,8.94744339,87.329,87.286,8.81913379]
[1770432168850,8.94744339,87.329,87.288,10.3176]
[1770432173248,8.94744339,87.329,87.292,10.3172]
[1770432174957,8.94744339,87.329,87.299,10.3163]
[1770432175157,8.94744339,87.329,87.289,8.81913379]
[1770432176645,8.94744339,87.329,87.298,10.3165]
[1770432176849,8.94744339,87.329,87.275,8.81913379]
[1770432177158,8.94744339,87.319,87.275,8.81913379]
[1770432177954,8.94744339,87.319,87.289,10.3175]
[1770432178547,8.94744339,87.319,87.297,10.3166]
[1770432178746,8.94744339,87.329,87.297,10.3166]
[1770432180462,4.70366321,87.34,87.304,10.3158]
[1770432180854,8.94744339,87.354,87.305,8.81913379]
[1770432181661,4.70366321,87.35,87.312,10.3147]
[1770432182961,4.70366321,87.35,87.312,19.13383379]
[1770432183562,8.94744339,87.354,87.312,19.13383379]
[1770432184462,8.94744339,87.354,87.317,10.3142]
[1770432184662,8.94744339,87.354,87.313,8.81913379]
[1770432188863,8.47145511,87.349,87.302,8.49941212]
[1770432189365,13.17511832,87.34,87.302,8.49941212]
[1770432189561,20.6105,87.394,87.237,35.52849379]
[1770432189562,8.47145511,87.329,87.291,8.49941212]
[1770432189758,4.70366321,87.32,87.271,8.49941212]
[1770432190461,8.47145511,87.329,87.271,8.49941212]
[1770432190863,10.3131,87.327,87.275,8.49941212]
[1770432192054,10.3131,87.327,87.276,10.319]
[1770432192256,13.17511832,87.34,87.281,8.49941212]
[1770432193963,13.17511832,87.34,87.288,8.49941212]
[1770432194658,13.17511832,87.34,87.29,8.49941212]
[1770432195164,4.70366321,87.35,87.292,8.49941212]
[1770432196865,4.70366321,87.35,87.306,8.49941212]
[1770432199157,8.47145511,87.353,87.309,8.49941212]
[1770432199655,8.47145511,87.353,87.312,18.81421212]
[1770432201368,8.47145511,87.353,87.313,8.49941212]
[1770432204867,4.70095262,87.34,87.298,8.49941212]
[1770432205066,8.47145511,87.339,87.298,8.49941212]
[1770432208668,8.47145511,87.339,87.302,8.49941212]
[1770432208874,8.47145511,87.349,87.302,8.49941212]
[1770432210873,8.47145511,87.349,87.31,18.81441212]
[1770432211475,8.47145511,87.349,87.311,8.49941212]
[1770432220485,8.47145511,87.349,87.315,8.32247838]
[1770432221682,8.0284802,87.36,87.321,8.32247838]
[1770432222789,8.0284802,87.36,87.323,8.32247838]
[1770432223082,8.0284802,87.36,87.303,8.32247838]
[1770432223383,8.0284802,87.349,87.303,8.32247838]
[1770432224691,8.0284802,87.349,87.305,8.32247838]
[1770432225792,8.0284802,87.349,87.293,28.40938793]
[1770432225793,8.0284802,87.349,87.307,8.32247838]
[1770432226884,8.0284802,87.349,87.309,8.32247838]
[1770432227080,8.0284802,87.359,87.309,8.32247838]
[1770432227688,8.0284802,87.359,87.31,8.32247838]
[1770432228189,8.0284802,87.359,87.311,8.32247838]
[1770432229789,8.0284802,87.359,87.316,8.32247838]
[1770432233490,8.0284802,87.359,87.319,8.32247838]
[1770432235490,8.0284802,87.359,87.308,8.32247838]
[1770432235693,8.0284802,87.339,87.298,8.32247838]
[1770432236488,8.0284802,87.339,87.284,28.40938793]
[1770432236489,8.0284802,87.339,87.3,8.32247838]
[1770432237094,8.0284802,87.357,87.3,8.32247838]
[1770432237692,8.0284802,87.357,87.301,10.3161]
[1770432237890,8.0284802,87.357,87.302,8.32247838]
[1770432238796,8.0284802,87.357,87.305,8.32247838]
[1770432240090,8.0284802,87.349,87.305,8.32247838]
[1770432242706,8.0284802,87.339,87.294,8.32247838]
[1770432244104,8.0284802,87.329,87.281,28.40938793]
[1770432244303,8.0284802,87.319,87.271,8.32247838]
[1770432246302,7.59637228,87.309,87.265,10.3203]
[1770432246503,12.2973249,87.3,87.258,7.05530165]
[1770432246705,7.59637228,87.299,87.258,7.05530165]
[1770432247713,7.59637228,87.299,87.255,10.3215]
[1770432247714,7.59637228,87.289,87.245,7.05530165]
[1770432248516,7.44558419,87.279,87.245,7.05530165]
[1770432249116,7.44558419,87.279,87.233,7.61960528]
[1770432250310,7.44558419,87.279,87.236,7.61960528]
[1770432251302,7.44558419,87.279,87.238,7.61960528]
[1770432252812,7.44558419,87.279,87.241,7.61960528]
[1770432253617,7.44558419,87.292,87.246,7.61960528]
[1770432254813,7.44558419,87.292,87.251,7.61960528]
[1770432255221,7.44558419,87.292,87.253,10.3218]
[1770432255412,7.44558419,87.292,87.254,7.61960528]
[1770432256817,7.44558419,87.292,87.258,7.61960528]
[1770432258716,7.44558419,87.292,87.26,10.3209]
[1770432258924,4.70095262,87.31,87.26,10.3209]
[1770432258925,7.44558419,87.32,87.261,7.61960528]
[1770432259218,7.44558419,87.309,87.261,7.61960528]